fUSD/lending_fUSD_20260122
["ID","MTS","AMOUNT","RATE_DAILY","PERIOD"]
[403033024,1769092631874,-438.61923921,0.00015238,2]
[403033025,1769092632992,-160.77954073,0.00015238,2]
[403033026,1769092634554,-241.82660523,0.00015238,2]
[403033027,1769092636823,-157.99311584,0.00015238,2]
[403033028,1769092637291,500.0,0.000176,30]
[403033029,1769092637739,500.0,0.000176,30]
[403033030,1769092638251,669.60277299,0.000176,30]
[403033031,1769092639442,-162.30962503,0.00015238,2]
[403033032,1769092641657,-279.22384882,0.00015238,2]
[403033033,1769092643201,-190.354199,0.00015238,2]
[403033034,1769092645448,-855.70991099,0.00015238,2]
[403033035,1769092646497,500.0,0.000176,30]
[403033036,1769092646646,500.0,0.000176,30]
[403033037,1769092646840,500.0,0.000176,30]
[403033038,1769092647073,500.0,0.000176,30]
[403033039,1769092647330,500.0,0.000176,30]
[403033040,1769092647563,500.0,0.000176,30]
[403033041,1769092648055,500.0,0.000176,30]
[403033042,1769092648172,515.74327916,0.000176,30]
[403033043,1769092648544,753.49621095,0.000176,30]
[403033044,1769092648573,-431.28818409,0.00014899,2]
[403033045,1769092649953,-251.01652615,0.00014899,2]
[403033046,1769092650442,500.0,0.000176,30]
[403033047,1769092650999,500.0,0.000176,30]
[403033048,1769092651212,500.0,0.000176,30]
[403033049,1769092651666,500.0,0.000176,30]
[403033050,1769092652165,500.0,0.000176,30]
[403033051,1769092652656,500.0,0.000176,30]
[403033052,1769092657487,-73.56433451,0.00014899,2]
[403033053,1769092657512,-226.43566549,0.00014899,2]
[403033054,1769092661554,-273.56433451,0.00014899,2]
[403033055,1769092661578,-72.10235716,0.00014899,2]
[403033056,1769092661735,700.0,0.000149,5]
[403033057,1769092662923,-320.73714796,0.00014899,2]
[403033058,1769092664699,-107.16049488,0.00014899,2]
[403033059,1769092664723,-166.13202639,0.00014899,2]
[403033060,1769092667654,-155.82606753,0.00014899,2]
[403033061,1769092670213,-178.04190608,0.00014899,2]
[403033062,1769092670243,-13.31817433,0.00014899,2]
[403033063,1769092672276,-241.89086637,0.00014899,2]
[403033064,1769092673900,-156.27,0.00014899,2]
[403033065,1769092675574,-214.24848571,0.00014899,2]
[403033066,1769092677840,-205.28648796,0.00014899,2]
[403033067,1769092680101,-134.6528274,0.00014899,2]
[403033068,1769092680127,-208.52640741,0.00015138,2]
[403033069,1769092680160,-16.09895347,0.00015238,2]
[403033073,1769092682639,-152.55509174,0.00015238,2]
[403033074,1769092685686,-276.03722908,0.00015238,2]
[403033075,1769092688245,-236.36609907,0.00015238,2]
[403033076,1769092691381,-183.381527,0.00015238,2]
[403033077,1769092700724,-356.39813618,0.00015122,2]
[403033078,1769092702770,-326.22413417,0.00015122,2]
[403033079,1769092705480,-192.40805446,0.00015122,2]
[403033080,1769092706979,-303.0480494,0.00015122,2]
[403033081,1769092709419,-348.75883952,0.00015122,2]
[403033082,1769092710856,-155.24071074,0.00015122,2]
[403033083,1769092713430,-207.93275091,0.00015122,2]
[403033084,1769092715307,-237.64234053,0.00015122,2]
[403033085,1769092716933,-167.17532628,0.00015122,2]
[403033086,1769092719739,-352.83762088,0.00015121,2]
[403033087,1769092723058,-147.16237912,0.00015121,2]
[403033088,1769092723083,-276.76037987,0.00015121,2]
[403033089,1769092724524,-212.15196144,0.00015121,2]
[403033090,1769092724549,-1.14668045,0.00015122,2]
[403033091,1769092726064,-220.54251313,0.00015122,2]
[403033092,1769092729411,-209.51412181,0.00015122,2]
[403033093,1769092730867,-334.0474921,0.00015122,2]
[403033094,1769092734110,-188.37920448,0.00015122,2]
[403033095,1769092735649,-218.24227358,0.00015122,2]
[403033096,1769092739645,-156.99260718,0.00015122,2]
[403033097,1769092741085,-291.82611479,0.00015122,2]
[403033099,1769092749611,-399.30939117,0.00015087,2]
[403033100,1769092751222,-333.27214683,0.00015087,2]
[403033101,1769092755486,-184.38641674,0.00015087,2]
[403033102,1769092756942,-267.10960323,0.00015087,2]
[403033103,1769092758888,-249.69930692,0.00015087,2]
[403033105,1769092763407,-235.34687346,0.00015087,2]
[403033106,1769092764877,-171.63552027,0.00015087,2]
[403033107,1769092767082,-13.71474118,0.00015087,2]
[403033108,1769092767106,-278.35250791,0.00015121,2]
[403033109,1769092769695,-21.64749209,0.00015121,2]
[403033110,1769092769719,-177.94743589,0.00015121,2]
[403033111,1769092771201,-122.05256411,0.00015121,2]
[403033112,1769092771230,-83.61117464,0.00015121,2]
[403033113,1769092773100,-231.39722472,0.00015121,2]
[403033114,1769092777869,-198.58781001,0.00015121,2]
[403033115,1769092777896,-91.47943925,0.00015121,2]
[403033116,1769092779475,-422.11677012,0.00015121,2]
[403033117,1769092779503,-199.87107339,0.00015121,2]
[403033118,1769092789637,-292.27244388,0.00015121,2]
[403033119,1769092791117,-21.4526921,0.00015121,2]
[403033120,1769092791150,-143.63429407,0.00015121,2]
[403033121,1769092793714,-159.0032352,0.00015121,2]
[403033122,1769092796703,-210.9586801,0.00015121,2]
[403033123,1769092796733,-94.00181991,0.00015121,2]
[403033124,1769092799235,-254.53843363,0.00015121,2]
[403033125,1769092801336,-173.72034882,0.0001512,2]
[403033126,1769092803777,-69.27965118,0.0001512,2]
[403033127,1769092803802,-119.9457361,0.0001512,2]
[403033128,1769092806584,-345.46533407,0.0001512,2]
[403033129,1769092808633,-227.68463035,0.0001512,2]
[403033130,1769092814236,-190.28,0.00015112,2]
[403033131,1769092814260,-203.96572605,0.00015112,2]
[403033132,1769092817452,-356.85502261,0.00015112,2]
[403033133,1769092819034,-202.69968522,0.0001512,2]
[403033134,1769092822507,-304.20461426,0.0001512,2]
[403033135,1769092822532,-16.48780129,0.0001512,2]
[403033136,1769092824740,-200.0,0.0001512,2]
[403033137,1769092826164,-83.51219871,0.0001512,2]
[403033138,1769092826190,-99.05995796,0.0001512,2]
[403033139,1769092835406,-176.94004204,0.0001512,2]
[403033140,1769092835431,-300.0,0.0001512,2]
[403033141,1769092835461,-13.37832118,0.00015121,2]
[403033142,1769092837443,-151.67763465,0.00015121,2]
[403033143,1769092837472,-9.72337261,0.00015121,2]
[403033144,1769092850148,-200.0,0.00014875,2]
[403033145,1769092850180,-83.58231807,0.00015121,2]
[403033146,1769092851810,-200.0,0.00015121,2]
[403033147,1769092854666,-212.01129775,0.00015121,2]
[403033148,1769092861505,-117.48809305,0.00015121,2]
[403033149,1769092861530,-203.14186998,0.00015121,2]
[403033150,1769092867812,-96.85813002,0.00015121,2]
[403033151,1769092867840,-125.03836213,0.00015122,2]
[403033152,1769092869845,-297.36460161,0.00015122,2]
[403033153,1769092872471,-210.64922317,0.00015122,2]
[403033155,1769092874526,-187.07118978,0.00015122,2]
[403033156,1769092877844,-200.57604426,0.00015122,2]
[403033157,1769092880458,-175.68786292,0.00015122,2]
[403033158,1769092889423,1294.0,0.00018,30]
[403033159,1769092894683,-319.18419913,0.00014933,2]
[403033160,1769092918329,-1423.27780087,0.00014933,2]
[403033161,1769092918360,-2828.74439826,0.00015009,2]
[403033162,1769092918432,-1495.96560174,0.00015009,2]
[403033163,1769092921007,-388.43683999,0.00015121,2]
[403033164,1769092921039,-625.23344932,0.00015121,2]
[403033165,1769092921072,-500.0,0.00015121,2]
[403033166,1769092921103,-500.0,0.00015121,2]
[403033167,1769092921134,-500.0,0.00015121,2]
[403033168,1769092921165,-500.0,0.00015121,2]
[403033169,1769092921196,-289.30307257,0.00015121,2]
[403033170,1769092921227,-500.0,0.00015121,2]
[403033171,1769092921442,-2394.06327624,0.00015122,2]
[403033172,1769092924165,-300.0,0.0001512,2]
[403033173,1769092924197,-300.0,0.00015121,2]
[403033174,1769092924268,-8800.01,0.00015122,2]
[403033175,1769092936515,500.0,0.000176,30]
[403033176,1769092936624,500.0,0.000176,30]
[403033177,1769092936991,500.0,0.000176,30]
[403033178,1769092938172,500.0,0.000176,30]
[403033179,1769092938869,500.0,0.000176,30]
[403033180,1769092939168,500.0,0.000176,30]
[403033181,1769092939838,500.0,0.000176,30]
[403033182,1769092943734,-500.0,0.00014899,2]
[403033183,1769092943768,-500.0,0.00014899,2]
[403033184,1769092943802,-500.0,0.00014899,2]
[403033185,1769092943835,-500.0,0.00014899,2]
[403033186,1769092943867,-222.27589358,0.00015121,2]
[403033187,1769092943903,-523.25415728,0.00015121,2]
[403033188,1769092943940,-523.25415728,0.00015121,2]
[403033189,1769092943978,-523.25415728,0.00015121,2]
[403033190,1769092944017,-523.25415728,0.00015121,2]
[403033191,1769092944057,-523.25415728,0.00015121,2]
[403033192,1769092944210,-523.25415728,0.00015121,2]
[403033193,1769092944249,-523.25415728,0.00015121,2]
[403033194,1769092944289,-523.25415728,0.00015121,2]
[403033195,1769092944331,-523.25415728,0.00015121,2]
[403033196,1769092944368,-523.25415728,0.00015121,2]
[403033197,1769092944406,-523.25415728,0.00015121,2]
[403033198,1769092944443,-523.25415728,0.00015121,2]
[403033199,1769092944480,-523.25415728,0.00015121,2]
[403033200,1769092944519,-523.25415728,0.00015121,2]
[403033201,1769092944561,-58.18101168,0.00015121,2]
[403033202,1769092944745,-465.0731456,0.00015121,2]
[403033203,1769092944783,-523.25415728,0.00015121,2]
[403033204,1769092944820,-523.25415728,0.00015121,2]
[403033205,1769092944856,-523.25415728,0.00015121,2]
[403033206,1769092944895,-523.25415728,0.00015121,2]
[403033207,1769092944932,-523.25415728,0.00015121,2]
[403033208,1769092944969,-523.25415728,0.00015121,2]
[403033209,1769092945006,-523.25415728,0.00015121,2]
[403033210,1769092945045,-523.25415728,0.00015121,2]
[403033211,1769092945082,-174.54303504,0.00015121,2]
[403033212,1769092945680,-90.19259332,0.00015121,2]
[403033213,1769092945698,-258.51852892,0.00015121,2]
[403033214,1769092945707,-264.73562836,0.00015121,2]
[403033215,1769092945728,-258.51852892,0.00015121,2]
[403033216,1769092945738,-264.73562836,0.00015121,2]
[403033217,1769092946495,-258.51852892,0.00015121,2]
[403033218,1769092946532,-523.25415728,0.00015121,2]
[403033219,1769092946568,-523.25415728,0.00015121,2]
[403033220,1769092946606,-523.25415728,0.00015121,2]
[403033221,1769092946644,-523.25415728,0.00015121,2]
[403033222,1769092946682,-523.25415728,0.00015121,2]
[403033223,1769092946719,-523.25415728,0.00015121,2]
[403033224,1769092946756,-523.25415728,0.00015121,2]
[403033225,1769092946792,-523.25415728,0.00015121,2]
[403033226,1769092946828,-523.25415728,0.00015121,2]
[403033227,1769092947328,-64.39811112,0.00015121,2]
[403033228,1769092952756,-458.85604616,0.00015121,2]
[403033229,1769092952793,-523.25415728,0.00015121,2]
[403033230,1769092952829,-523.25415728,0.00015121,2]
[403033231,1769092952864,-523.25415728,0.00015121,2]
[403033232,1769092952899,-523.25415728,0.00015121,2]
[403033233,1769092952935,-523.25415728,0.00015121,2]
[403033234,1769092952971,-523.25415728,0.00015121,2]
[403033235,1769092953006,-523.25415728,0.00015121,2]
[403033236,1769092953044,-523.25415728,0.00015121,2]
[403033237,1769092953080,-186.97723392,0.00015121,2]
[403033238,1769092953282,-336.27692336,0.00015121,2]
[403033239,1769092953327,-523.25415728,0.00015121,2]
[403033240,1769092953368,-523.25415728,0.00015121,2]
[403033241,1769092953408,-523.25415728,0.00015121,2]
[403033242,1769092953728,-523.25415728,0.00015121,2]
[403033243,1769092953769,-523.25415728,0.00015121,2]
[403033244,1769092953811,-523.25415728,0.00015121,2]
[403033245,1769092953846,-500.0,0.00015121,2]
[403033246,1769092953880,-500.0,0.00015122,2]
[403033247,1769092954378,-336.27692336,0.00015122,2]
[403033248,1769092954400,-1048.40626592,0.00015122,2]
[403033249,1769092955806,-10000.01,0.00015122,2]
[403033250,1769092955960,-10000.01,0.00015122,2]
[403033251,1769092971458,-167.29847352,0.00015122,2]
[403033252,1769092974144,150.0,0.000226,120]
[403033253,1769092983724,1500.0,0.00016,3]
[403033254,1769092999616,-387.92974064,0.00015022,2]
[403033255,1769093001683,-222.5250911,0.00015021,2]
[403033256,1769093005295,-151.43953332,0.00015021,2]
[403033257,1769093007528,-213.03537558,0.00015021,2]
[403033258,1769093007554,-7.04314168,0.00015022,2]
[403033259,1769093009088,-309.95623734,0.00015022,2]
[403033260,1769093011636,-312.50627765,0.00015022,2]
[403033261,1769093013671,-220.14059772,0.00015022,2]
[403033262,1769093016165,-165.17107784,0.00015022,2]
[403033263,1769093018268,-181.20370123,0.00015022,2]
[403033264,1769093020824,-199.97653354,0.00015022,2]
[403033265,1769093025408,-187.8127565,0.00015022,2]
[403033266,1769093027544,-319.213865,0.00015022,2]
[403033267,1769093031327,-194.78001737,0.00015022,2]
[403033268,1769093033837,-269.5220157,0.00015022,2]
[403033269,1769093037253,-594.55930104,0.00015022,2]
[403033270,1769093039390,-158.50428481,0.00015022,2]
[403033271,1769093041644,-264.87733376,0.00015022,2]
[403033272,1769093041750,166.66,0.00014037,2]
[403033273,1769093042026,166.66,0.00014333,2]
[403033274,1769093042229,166.66,0.00014628,2]
[403033275,1769093043078,-166.66,0.00014924,2]
[403033276,1769093043103,-79.63664146,0.00015022,2]
[403033288,1769093081869,-257.181034,0.00014946,2]
[403033289,1769093081984,-9485.647932,0.00015022,2]
[403033290,1769093089028,-10000.01,0.00015022,2]
[403033291,1769093092722,184.0,0.00014689,2]
[403033347,1769093224986,440.38,0.0001429,2]
[403033348,1769093225064,200.0,0.0001429,2]
[403033350,1769093256601,800.0,0.000148,5]
[403033351,1769093258705,1700.0,0.000149,5]
[403033352,1769093260789,2600.0,0.000159,5]
[403033357,1769093297479,-298.73459442,0.00014922,2]
[403033358,1769093297510,-298.73459442,0.00014972,2]
[403033359,1769093297541,-298.73459442,0.00015021,2]
[403033360,1769093297574,-300.0,0.00015021,2]
[403033361,1769093297623,-300.0,0.00015021,2]
[403033364,1769093297669,-300.0,0.00015021,2]
[403033365,1769093297713,-300.0,0.00015021,2]
[403033366,1769093298032,-5807.60243348,0.00015022,2]
[403033367,1769093298425,-353.65680553,0.00015022,2]
[403033373,1769093303554,-350.21260571,0.00015022,2]
[403033374,1769093303600,-9299.58478858,0.00015022,2]
[403033376,1769093322331,-10000.01,0.00015022,2]
[403033377,1769093322551,-10000.01,0.00015022,2]
[403033378,1769093322718,-4637.57965593,0.00015022,2]
[403033379,1769093322747,-724.85068814,0.00015022,2]
[403033380,1769093323070,-421.04734503,0.00015022,2]
[403033381,1769093323103,-600.0,0.00015022,2]
[403033382,1769093323132,-195.0,0.00015024,2]
[403033383,1769093323163,-1200.0,0.00015025,2]
[403033384,1769093323365,-5167.91530994,0.00015026,2]
[403033385,1769093323408,-10000.01,0.00015026,2]
[403033386,1769093323472,-10000.01,0.00015026,2]
[403033387,1769093323507,-2394.07519258,0.00015026,2]
[403033388,1769093323536,-195.0,0.00015083,2]
[403033389,1769093323568,-1046.50831457,0.00015121,2]
[403033390,1769093323604,-1046.50831457,0.00015121,2]
[403033391,1769093323662,-1046.50831457,0.00015121,2]
[403033392,1769093323671,-1046.50831457,0.00015121,2]
[403033393,1769093323680,-1046.50831457,0.00015121,2]
[403033394,1769093323690,-1046.50831457,0.00015121,2]
[403033395,1769093323699,-1046.50831457,0.00015121,2]
[403033396,1769093323708,-85.37660543,0.00015121,2]
[403033397,1769093323747,-961.13170914,0.00015121,2]
[403033398,1769093323757,-1046.50831457,0.00015121,2]
[403033399,1769093323766,-386.43516887,0.00015121,2]
[403033400,1769093323786,-195.0,0.00015121,2]
[403033401,1769093323813,-465.0731457,0.00015121,2]
[403033402,1769093323823,-581.43516887,0.00015121,2]
[403033403,1769093323847,-465.0731457,0.00015121,2]
[403033404,1769093323856,-581.43516887,0.00015121,2]
[403033405,1769093323893,-465.0731457,0.00015121,2]
[403033406,1769093323902,-170.75321086,0.00015121,2]
[403033408,1769093325202,-875.75510371,0.00015121,2]
[403033409,1769093325239,-1046.50831457,0.00015121,2]
[403033410,1769093325276,-1046.50831457,0.00015121,2]
[403033411,1769093325312,-1046.50831457,0.00015121,2]
[403033412,1769093325349,-922.94159059,0.00015121,2]
[403033413,1769093325599,-123.56672398,0.00015121,2]
[403033414,1769093325666,-1046.50831457,0.00015121,2]
[403033415,1769093325702,-1046.50831457,0.00015121,2]
[403033416,1769093325738,-500.0,0.00015121,2]
[403033417,1769093325773,-500.0,0.00015121,2]
[403033418,1769093325810,-500.0,0.00015121,2]
[403033419,1769093325847,-500.0,0.00015121,2]
[403033420,1769093325883,-194.49472885,0.00015121,2]
[403033421,1769093325913,-229.14366067,0.00015121,2]
[403033422,1769093325946,-466.69996268,0.00015121,2]
[403033423,1769093326326,-33.30003732,0.00015121,2]
[403033424,1769093328415,-500.0,0.00015121,2]
[403033425,1769093328445,-500.0,0.00015121,2]
[403033426,1769093328509,-8000.01,0.00015122,2]
[403033427,1769093328561,-10000.01,0.00015122,2]
[403033428,1769093328698,-10000.01,0.00015122,2]
[403033429,1769093328878,-10000.01,0.00015122,2]
[403033430,1769093329120,-10000.01,0.00015122,2]
[403033431,1769093329194,-10000.01,0.00015122,2]
[403033432,1769093329292,-10000.01,0.00015122,2]
[403033437,1769093369234,-387.3461864,0.00015121,2]
[403033438,1769093369266,-300.0,0.00015121,2]
[403033439,1769093369337,-8625.3176272,0.00015122,2]
[403033440,1769093369499,-10000.01,0.00015122,2]
[403033441,1769093369601,-10000.01,0.00015122,2]
[403033442,1769093374658,-179.047633,0.00015121,2]
[403033443,1769093376815,-200.0,0.00015121,2]
[403033444,1769093377074,-3942.72368034,0.00015121,2]
[403033445,1769093377107,-66.30087421,0.00015121,2]
[403033446,1769093377159,-1981.9608909,0.00015121,2]
[403033449,1769093380300,-194.28595681,0.00015121,2]
[403033450,1769093381971,-787.75432809,0.00015121,2]
[403033451,1769093382037,-8424.50134382,0.00015122,2]
[403033452,1769093382224,-10000.01,0.00015122,2]
[403033453,1769093382376,-10000.01,0.00015122,2]
[403033454,1769093382625,-10000.01,0.00015122,2]
[403033455,1769093383107,-299.35701369,0.00015122,2]
[403033457,1769093385688,-195.0,0.00015122,2]
[403033458,1769093387226,-261.08377461,0.00015122,2]
[403033459,1769093389622,-160.64368691,0.00014922,2]
[403033460,1769093391210,-352.43299148,0.00014922,2]
[403033461,1769093393816,-244.80789902,0.00014922,2]
[403033462,1769093395268,-302.0,0.00014922,2]
[403033463,1769093397487,-208.42876866,0.00014922,2]
[403033464,1769093401549,-211.18046421,0.00014921,2]
[403033465,1769093402999,-88.81953579,0.00014921,2]
[403033466,1769093403032,-109.98497899,0.00014921,2]
[403033467,1769093406450,-173.75642742,0.00014921,2]
[403033468,1769093410234,-198.54310845,0.00014921,2]
[403033469,1769093411810,-168.22269156,0.00014921,2]
[403033471,1769093413793,-171.16119567,0.00014921,2]
[403033472,1769093421420,-431.03112598,0.00014912,2]
[403033473,1769093422863,-255.19206791,0.00014912,2]
[403033474,1769093424523,-296.1149123,0.00014912,2]
[403033475,1769093427865,-255.19210098,0.00014921,2]
[403033476,1769093429716,-123.13949693,0.00014921,2]
[403033477,1769093429748,-58.823359,0.00014922,2]
[403033495,1769093431542,-626.31575954,0.00014922,2]
[403033504,1769093431616,-1825.06357538,0.00014922,2]
[403033506,1769093431627,-5265.45272466,0.00014922,2]
[403033507,1769093431638,-8301.16846777,0.00014922,2]
[403033508,1769093431649,-712.03034716,0.00014922,2]
[403033509,1769093431661,-1321.58232096,0.00014922,2]
[403033511,1769093432534,-4191.21015409,0.00014922,2]
[403033512,1769093432557,-9805.73974299,0.00014922,2]
[403033513,1769093432568,-320.65660765,0.00014922,2]
[403033514,1769093432578,-625.6194234,0.00014922,2]
[403033515,1769093432593,-878.94188727,0.00014922,2]
[403033516,1769093432605,-2215.38478634,0.00014922,2]
[403033517,1769093432623,-250.0,0.00014922,2]
[403033518,1769093432634,-135412.82075402,0.00014922,2]
[403033519,1769093432645,-20969.09705812,0.00014922,2]
[403033520,1769093432657,-805951.77968558,0.00014922,2]
[403033521,1769093432666,-1595.62559444,0.00015112,2]
[403033522,1769093432676,-1023.22701071,0.00015121,2]
[403033523,1769093432685,-500.0,0.00015121,2]
[403033524,1769093432695,-214892.10844426,0.00015122,2]
[403033525,1769093432704,-1000.0,0.00015122,2]
[403033526,1769093432714,-433.36232072,0.00015122,2]
[403033527,1769093432723,-158.9,0.00015126,2]
[403033528,1769093432733,-500.0,0.00015136,2]
[403033529,1769093432742,-500.0,0.00015136,2]
[403033530,1769093432751,-500.0,0.00015136,2]
[403033531,1769093432761,-500.0,0.00015136,2]
[403033532,1769093432770,-263.69840181,0.00015136,2]
[403033533,1769093432779,-3272.09504584,0.00015138,2]
[403033534,1769093432788,-166.66,0.00015219,2]
[403033535,1769093432798,-500.0,0.00015228,2]
[403033536,1769093432808,-500.0,0.00015228,2]
[403033537,1769093432817,-150.99,0.00015228,2]
[403033538,1769093432826,-5091.79,0.00015228,2]
[403033539,1769093432835,-9999.99,0.00015228,2]
[403033540,1769093432844,-9999.99,0.00015228,2]
[403033541,1769093432854,-150.99,0.00015228,2]
[403033542,1769093432864,-20007.66,0.00015229,2]
[403033543,1769093433133,-151.0,0.00015229,2]
[403033544,1769093433156,-151.0,0.00015229,2]
[403033545,1769093433166,-151.0,0.00015229,2]
[403033546,1769093433175,-151.0,0.00015229,2]
[403033547,1769093433185,-151.0,0.00015229,2]
[403033548,1769093433194,-151.0,0.00015229,2]
[403033549,1769093433203,-151.0,0.00015229,2]
[403033550,1769093433212,-151.0,0.00015229,2]
[403033551,1769093433221,-151.0,0.00015229,2]
[403033552,1769093433230,-500.0,0.00015229,2]
[403033553,1769093433239,-151.0,0.00015229,2]
[403033554,1769093433248,-500.0,0.00015229,2]
[403033555,1769093433257,-151.0,0.00015229,2]
[403033556,1769093433266,-151.0,0.00015229,2]
[403033557,1769093433275,-500.0,0.00015229,2]
[403033558,1769093433285,-500.0,0.00015229,2]
[403033559,1769093433294,-200.0,0.00015229,2]
[403033560,1769093433303,-303.55125424,0.00015229,2]
[403033561,1769093433312,-500.0,0.00015229,2]
[403033562,1769093433321,-500.0,0.00015229,2]
[403033563,1769093433330,-500.0,0.00015229,2]
[403033564,1769093433338,-174.47715349,0.00015229,2]
[403033565,1769093433347,-1053.01,0.00015229,2]
[403033566,1769093433356,-500.0,0.00015229,2]
[403033567,1769093433365,-500.0,0.00015237,2]
[403033568,1769093433374,-500.0,0.00015237,2]
[403033569,1769093433384,-389.79,0.00015237,2]
[403033570,1769093433392,-420.34,0.00015237,2]
[403033571,1769093433402,-1468.19,0.00015237,2]
[403033572,1769093433411,-159.52,0.00015237,2]
[403033573,1769093433420,-500.0,0.00015237,2]
[403033574,1769093433429,-500.0,0.00015237,2]
[403033575,1769093433440,-500.0,0.00015237,2]
[403033576,1769093433453,-500.0,0.00015237,2]
[403033577,1769093433462,-500.0,0.00015237,2]
[403033578,1769093433471,-507.4251083,0.00015237,2]
[403033579,1769093433480,-247.0,0.00015237,2]
[403033580,1769093433489,-500.0,0.00015237,2]
[403033581,1769093433498,-500.0,0.00015237,2]
[403033582,1769093433507,-527.20053944,0.00015237,2]
[403033583,1769093433517,-151.0,0.00015238,2]
[403033584,1769093433526,-150.0,0.00015238,2]
[403033585,1769093433535,-391.3649,0.00015238,2]
[403033586,1769093433544,-184.2881,0.00015238,2]
[403033587,1769093433553,-7746.3683,0.00015238,2]
[403033588,1769093433562,-150.0,0.00015308,2]
[403033589,1769093433571,-500.0,0.00015337,2]
[403033590,1769093433580,-587.48435164,0.00015337,2]
[403033591,1769093433589,-500.0,0.00015337,2]
[403033592,1769093433598,-500.0,0.00015337,2]
[403033593,1769093433607,-184.13788306,0.00015337,2]
[403033594,1769093433616,-500.0,0.00015337,2]
[403033595,1769093433626,-386.45682453,0.00015337,2]
[403033596,1769093433635,-521.14771014,0.00015337,2]
[403033597,1769093433644,-329.77468872,0.00015337,2]
[403033598,1769093433654,-500.0,0.00015337,2]
[403033599,1769093433663,-500.0,0.00015337,2]
[403033600,1769093433673,-500.0,0.00015337,2]
[403033601,1769093433683,-500.0,0.00015337,2]
[403033602,1769093433694,-379.72968761,0.00015337,2]
[403033603,1769093433704,-500.0,0.00015337,2]
[403033604,1769093433713,-500.0,0.00015337,2]
[403033605,1769093433723,-500.0,0.00015337,2]
[403033606,1769093433732,-500.0,0.00015337,2]
[403033607,1769093433742,-500.0,0.00015337,2]
[403033608,1769093433751,-34662.03513265,0.00015342,2]
[403033609,1769093433761,-500.0,0.00015437,2]
[403033610,1769093433770,-500.0,0.00015437,2]
[403033611,1769093433780,-500.0,0.00015437,2]
[403033612,1769093433789,-500.0,0.00015443,2]
[403033613,1769093433799,-1053.01,0.00015503,2]
[403033614,1769093433809,-166.66,0.00015515,2]
[403033615,1769093433819,-151.0,0.00015642,2]
[403033616,1769093433828,-151.0,0.00015646,2]
[403033617,1769093433838,-151.0,0.00015651,2]
[403033618,1769093433847,-151.0,0.00015652,2]
[403033619,1769093433857,-34662.03513265,0.00015662,2]
[403033620,1769093433867,-500.0,0.00015777,2]
[403033621,1769093433877,-1053.01,0.00015777,2]
[403033622,1769093433886,-200.0,0.000159,2]
[403033623,1769093433896,-46867.67852523,0.00015971,2]
[403033624,1769093433905,-34662.03513265,0.00015981,2]
[403033625,1769093433914,-3872.88324677,0.00016044,2]
[403033626,1769093433923,-1053.01,0.00016051,2]
[403033627,1769093433934,-510.0,0.00016148,2]
[403033628,1769093433944,-214.075418,0.00016301,2]
[403033630,1769093433953,-34662.03513265,0.00016301,2]
[403033631,1769093433963,-500.0,0.00016325,2]
[403033632,1769093433973,-1053.01,0.00016325,2]
[403033634,1769093433983,-1680.0,0.00016413,2]
[403033635,1769093433992,-300.0,0.00016413,2]
[403033636,1769093434002,-500.0,0.00016437,2]
[403033637,1769093434011,-500.0,0.00016438,2]
[403033638,1769093434021,-500.0,0.00016438,2]
[403033639,1769093434030,-500.0,0.00016438,2]
[403033640,1769093434039,-500.0,0.00016438,2]
[403033641,1769093434050,-500.0,0.00016438,2]
[403033642,1769093434059,-500.0,0.00016438,2]
[403033643,1769093434069,-500.0,0.00016438,2]
[403033644,1769093434078,-500.0,0.00016438,2]
[403033645,1769093434088,-500.0,0.00016438,2]
[403033646,1769093434097,-500.0,0.00016438,2]